fUSD/lending_fUSD_20241227
["ID","MTS","AMOUNT","RATE_DAILY","PERIOD"]
[346807299,1735301447844,-1115.71,0.00010883,2]
[346807300,1735301447854,-500.0,0.00010883,2]
[346807301,1735301447864,-769.68,0.00010883,2]
[346807302,1735301447873,-819.18,0.00010883,2]
[346807303,1735301447883,-562.91,0.00010883,2]
[346807304,1735301447892,-670.62,0.00010883,2]
[346807305,1735301447901,-500.0,0.00010883,2]
[346807306,1735301447910,-500.0,0.00010883,2]
[346807307,1735301447920,-500.0,0.00010883,2]
[346807308,1735301447929,-1118.6,0.00010883,2]
[346807309,1735301447938,-500.0,0.00010883,2]
[346807310,1735301447947,-500.0,0.00010883,2]
[346807311,1735301447958,-500.0,0.00010883,2]
[346807312,1735301447968,-788.81,0.00010883,2]
[346807313,1735301447977,-1468.42,0.00010883,2]
[346807314,1735301447986,-500.0,0.00010883,2]
[346807315,1735301447996,-509.47380184,0.00010883,2]
[346807316,1735301448004,-500.0,0.00010883,2]
[346807317,1735301448014,-500.0,0.00010883,2]
[346807318,1735301448023,-505.42,0.00010883,2]
[346807319,1735301448032,-1532.83,0.00010883,2]
[346807320,1735301448042,-652.37,0.00010883,2]
[346807321,1735301448052,-500.0,0.00010883,2]
[346807322,1735301448061,-1180.03,0.00010883,2]
[346807323,1735301448071,-500.0,0.00010883,2]
[346807324,1735301448080,-500.0,0.00010883,2]
[346807325,1735301448090,-1136.69,0.00010883,2]
[346807326,1735301448105,-580.29,0.00010883,2]
[346807327,1735301448115,-500.0,0.00010883,2]
[346807328,1735301448124,-2794.56,0.00010883,2]
[346807329,1735301448134,-2768.97,0.00010883,2]
[346807330,1735301448145,-500.0,0.00010883,2]
[346807331,1735301448154,-500.0,0.00010883,2]
[346807332,1735301448164,-500.0,0.00010883,2]
[346807333,1735301448174,-500.0,0.00010883,2]
[346807334,1735301448187,-722.49,0.00010883,2]
[346807335,1735301448197,-1182.85,0.00010883,2]
[346807336,1735301448207,-1474.94,0.00010883,2]
[346807337,1735301448218,-661.35,0.00010883,2]
[346807338,1735301448227,-815.14,0.00010883,2]
[346807339,1735301448237,-500.0,0.00010883,2]
[346807340,1735301448246,-1632.89,0.00010883,2]
[346807341,1735301448255,-962.07,0.00010883,2]
[346807342,1735301448265,-500.0,0.00010883,2]
[346807343,1735301448276,-500.0,0.00010883,2]
[346807344,1735301448286,-500.0,0.00010883,2]
[346807345,1735301448295,-843.67,0.00010883,2]
[346807346,1735301448305,-500.0,0.00010883,2]
[346807347,1735301448315,-500.0,0.00010883,2]
[346807348,1735301448324,-500.0,0.00010883,2]
[346807349,1735301448334,-500.0,0.00010883,2]
[346807350,1735301448344,-1606.76,0.00010883,2]
[346807351,1735301448354,-1456.95,0.00010883,2]
[346807352,1735301448363,-565.03,0.00010883,2]
[346807353,1735301448373,-2309.67,0.00010883,2]
[346807354,1735301448383,-500.0,0.00010883,2]
[346807355,1735301448392,-731.59,0.00010883,2]
[346807356,1735301448402,-500.0,0.00010883,2]
[346807357,1735301448412,-500.0,0.00010883,2]
[346807358,1735301448422,-1020.66,0.00010883,2]
[346807359,1735301448431,-580.72663504,0.00010883,2]
[346807360,1735301448440,-500.0,0.00010883,2]
[346807361,1735301448450,-500.0,0.00010883,2]
[346807362,1735301448459,-500.0,0.00010883,2]
[346807363,1735301448468,-743.04,0.00010883,2]
[346807364,1735301448478,-500.0,0.00010883,2]
[346807365,1735301448487,-500.0,0.00010883,2]
[346807366,1735301448496,-500.0,0.00010883,2]
[346807367,1735301448506,-701.77,0.00010883,2]
[346807368,1735301448516,-500.0,0.00010883,2]
[346807369,1735301448525,-1141.39,0.00010883,2]
[346807370,1735301448534,-3035.03,0.00010883,2]
[346807371,1735301448543,-500.0,0.00010883,2]
[346807372,1735301448552,-500.0,0.00010883,2]
[346807373,1735301448562,-500.0,0.00010883,2]
[346807374,1735301448572,-500.0,0.00010883,2]
[346807375,1735301448581,-500.0,0.00010883,2]
[346807376,1735301448591,-500.0,0.00010883,2]
[346807377,1735301448601,-560.82,0.00010883,2]
[346807378,1735301448611,-1059.91,0.00010883,2]
[346807379,1735301448620,-1432.4,0.00010883,2]
[346807380,1735301448630,-500.0,0.00010883,2]
[346807381,1735301448639,-1595.24,0.00010883,2]
[346807382,1735301448649,-500.0,0.00010883,2]
[346807383,1735301448658,-1898.43,0.00010883,2]
[346807384,1735301448668,-500.0,0.00010883,2]
[346807385,1735301448677,-500.0,0.00010883,2]
[346807386,1735301448686,-581.49,0.00010883,2]
[346807387,1735301448696,-500.0,0.00010883,2]
[346807388,1735301448705,-824.8,0.00010883,2]
[346807389,1735301448715,-1454.51,0.00010883,2]
[346807390,1735301448724,-500.0,0.00010883,2]
[346807391,1735301448734,-540.02421488,0.00010883,2]
[346807392,1735301448743,-685.88,0.00010883,2]
[346807393,1735301448752,-940.73,0.00010883,2]
[346807394,1735301448762,-500.50764438,0.00010883,2]
[346807395,1735301448771,-527.24,0.00010883,2]
[346807396,1735301448781,-500.0,0.00010883,2]
[346807397,1735301448790,-500.0,0.00010883,2]
[346807398,1735301448799,-1316.21,0.00010883,2]
[346807399,1735301448809,-905.0,0.00010883,2]
[346807400,1735301448818,-500.0,0.00010883,2]
[346807401,1735301448828,-500.0,0.00010883,2]
[346807402,1735301448837,-676.58,0.00010883,2]
[346807403,1735301448847,-500.0,0.00010883,2]
[346807404,1735301448856,-769.71,0.00010883,2]
[346807405,1735301448866,-1525.53,0.00010883,2]
[346807406,1735301448875,-500.0,0.00010883,2]
[346807407,1735301448884,-500.0,0.00010883,2]
[346807408,1735301448893,-500.0,0.00010883,2]
[346807409,1735301448903,-3054.73,0.00010883,2]
[346807410,1735301448913,-500.0,0.00010883,2]
[346807411,1735301448922,-500.0,0.00010883,2]
[346807412,1735301448933,-500.0,0.00010883,2]
[346807413,1735301448942,-1299.8,0.00010883,2]
[346807414,1735301448952,-500.0,0.00010883,2]
[346807415,1735301448962,-407.05426614,0.00010883,2]
[346807416,1735301448971,-510.4320097,0.00010883,2]
[346807417,1735301448981,-1088.78,0.00010883,2]
[346807418,1735301448990,-500.0,0.00010883,2]
[346807419,1735301449000,-500.0,0.00010883,2]
[346807420,1735301449009,-1324.81,0.00010883,2]
[346807421,1735301449019,-1198.25,0.00010883,2]
[346807422,1735301449028,-500.0,0.00010883,2]
[346807423,1735301449038,-500.0,0.00010883,2]
[346807424,1735301449047,-500.0,0.00010883,2]
[346807425,1735301449057,-500.0,0.00010883,2]
[346807426,1735301449066,-500.0,0.00010883,2]
[346807427,1735301449076,-500.0,0.00010883,2]
[346807428,1735301449085,-500.0,0.00010883,2]
[346807429,1735301449095,-500.0,0.00010883,2]
[346807430,1735301449108,-1167.57,0.00010883,2]
[346807431,1735301449118,-738.99,0.00010883,2]
[346807432,1735301449128,-500.0,0.00010883,2]
[346807433,1735301449138,-965.58,0.00010883,2]
[346807434,1735301449147,-500.0,0.00010883,2]
[346807435,1735301449157,-502.03484991,0.00010883,2]
[346807436,1735301449167,-15284.03,0.00010883,2]
[346807437,1735301449177,-500.0,0.00010883,2]
[346807438,1735301449187,-500.0,0.00010883,2]
[346807439,1735301449197,-935.21,0.00010883,2]
[346807440,1735301449207,-2378.03,0.00010883,2]
[346807441,1735301449218,-500.0,0.00010883,2]
[346807442,1735301449227,-1671.94,0.00010883,2]
[346807443,1735301449237,-1076.65,0.00010883,2]
[346807444,1735301449247,-11241.95,0.00010883,2]
[346807445,1735301449256,-500.0,0.00010883,2]
[346807446,1735301449266,-548.58,0.00010883,2]
[346807447,1735301449276,-500.0,0.00010883,2]
[346807448,1735301449286,-469.32818564,0.00010883,2]
[346807449,1735301449296,-318.19692873,0.00010883,2]
[346807450,1735301449533,-632.48,0.00010883,2]
[346807451,1735301449558,-533.11,0.00010883,2]
[346807452,1735301449568,-500.0,0.00010883,2]
[346807453,1735301449577,-1496.76,0.00010883,2]
[346807454,1735301449587,-903.52,0.00010883,2]
[346807455,1735301449596,-511.88007184,0.00010883,2]
[346807456,1735301449606,-500.0,0.00010883,2]
[346807457,1735301449616,-500.0,0.00010883,2]
[346807458,1735301449626,-500.0,0.00010883,2]
[346807459,1735301449635,-500.0,0.00010883,2]
[346807460,1735301449644,-274.99177056,0.00010883,2]
[346807461,1735301449654,-500.0,0.00010883,2]
[346807462,1735301449663,-9979.52,0.00010883,2]
[346807463,1735301449673,-500.0,0.00010883,2]
[346807464,1735301449683,-1410.16,0.00010883,2]
[346807465,1735301449692,-377.38862422,0.00010883,2]
[346807466,1735301449701,-2546.44,0.00010883,2]
[346807467,1735301449711,-2335.58,0.00010883,2]
[346807468,1735301449720,-506.04963214,0.00010883,2]
[346807469,1735301449729,-508.13049708,0.00010883,2]
[346807470,1735301449739,-500.0,0.00010883,2]
[346807471,1735301449748,-751.99,0.00010883,2]
[346807472,1735301449757,-500.0,0.00010883,2]
[346807473,1735301449766,-500.0,0.00010883,2]
[346807474,1735301449776,-500.0,0.00010883,2]
[346807475,1735301449785,-2313.23,0.00010883,2]
[346807476,1735301449794,-1935.74,0.00010883,2]
[346807477,1735301449804,-919.47,0.00010883,2]
[346807478,1735301449813,-500.0,0.00010883,2]
[346807479,1735301449823,-500.0,0.00010883,2]
[346807480,1735301449832,-500.0,0.00010883,2]
[346807481,1735301449841,-500.0,0.00010883,2]
[346807482,1735301449851,-500.0,0.00010883,2]
[346807483,1735301449860,-2915.42,0.00010883,2]
[346807484,1735301449869,-1157.87,0.00010883,2]
[346807485,1735301449879,-500.0,0.00010883,2]
[346807486,1735301449888,-500.0,0.00010883,2]
[346807487,1735301449898,-2001.45,0.00010883,2]
[346807488,1735301449908,-500.70053256,0.00010883,2]
[346807489,1735301449917,-500.0,0.00010883,2]
[346807490,1735301449927,-500.0,0.00010883,2]
[346807491,1735301449936,-500.0,0.00010883,2]
[346807492,1735301449945,-501.29320404,0.00010883,2]
[346807493,1735301449955,-500.0,0.00010883,2]
[346807494,1735301449965,-451.80718144,0.00010883,2]
[346807495,1735301449975,-239.00796004,0.00010883,2]
[346807496,1735301449984,-500.0,0.00010883,2]
[346807497,1735301449993,-500.0,0.00010883,2]
[346807498,1735301450002,-2605.95,0.00010883,2]
[346807499,1735301450012,-500.0,0.00010883,2]
[346807500,1735301450021,-505.49306192,0.00010883,2]
[346807501,1735301450029,-631.16,0.00010883,2]
[346807502,1735301450038,-500.0,0.00010883,2]
[346807503,1735301450047,-500.0,0.00010883,2]
[346807504,1735301450056,-551.41226834,0.00010883,2]
[346807505,1735301450065,-1529.67,0.00010883,2]
[346807506,1735301450073,-500.0,0.00010883,2]
[346807507,1735301450082,-500.0,0.00010883,2]
[346807508,1735301450093,-500.0,0.00010883,2]
[346807509,1735301450106,-500.0,0.00010883,2]
[346807510,1735301450117,-500.0,0.00010883,2]
[346807511,1735301450126,-500.0,0.00010883,2]
[346807512,1735301450135,-500.0,0.00010883,2]
[346807513,1735301450146,-500.0,0.00010883,2]
[346807514,1735301450155,-2107.16,0.00010883,2]
[346807515,1735301450164,-1521.81,0.00010883,2]
[346807516,1735301450173,-554.48,0.00010883,2]
[346807517,1735301450184,-507.33262465,0.00010883,2]
[346807518,1735301450194,-506.9265488,0.00010883,2]
[346807519,1735301450205,-500.0,0.00010883,2]
[346807520,1735301450214,-373.88660536,0.00010883,2]
[346807521,1735301450223,-605.4,0.00010883,2]
[346807522,1735301450232,-500.0,0.00010883,2]
[346807523,1735301450241,-500.0,0.00010883,2]
[346807524,1735301450250,-2315.0,0.00010883,2]
[346807525,1735301450259,-1653.75,0.00010883,2]
[346807526,1735301450268,-500.0,0.00010883,2]
[346807527,1735301450277,-500.0,0.00010883,2]
[346807528,1735301450287,-649.65643854,0.00010883,2]
[346807529,1735301450296,-500.0,0.00010883,2]
[346807530,1735301450305,-500.0,0.00010883,2]
[346807531,1735301450314,-500.0,0.00010883,2]
[346807532,1735301450324,-754.89,0.00010883,2]
[346807533,1735301450333,-500.0,0.00010883,2]
[346807534,1735301450342,-500.0,0.00010883,2]
[346807535,1735301450351,-509.91743499,0.00010883,2]
[346807536,1735301450360,-500.0,0.00010883,2]
[346807537,1735301450369,-807.03,0.00010883,2]
[346807538,1735301450378,-500.0,0.00010883,2]
[346807539,1735301450387,-500.0,0.00010883,2]
[346807540,1735301450398,-812.37,0.00010883,2]
[346807541,1735301450407,-500.0,0.00010883,2]
[346807542,1735301450417,-500.0,0.00010883,2]
[346807543,1735301450426,-2034.28,0.00010883,2]
[346807544,1735301450435,-501.42502896,0.00010883,2]
[346807545,1735301450444,-500.0,0.00010883,2]
[346807546,1735301450453,-597.52,0.00010883,2]
[346807547,1735301450462,-500.0,0.00010883,2]
[346807548,1735301450471,-500.0,0.00010883,2]
[346807549,1735301450480,-500.0,0.00010883,2]
[346807550,1735301450489,-1109.05,0.00010883,2]
[346807551,1735301450498,-500.0,0.00010883,2]
[346807552,1735301450507,-500.0,0.00010883,2]
[346807553,1735301450516,-500.0,0.00010883,2]
[346807554,1735301450525,-1981.12,0.00010883,2]
[346807555,1735301450535,-500.0,0.00010883,2]
[346807556,1735301450544,-2991.03,0.00010883,2]
[346807557,1735301450553,-500.0,0.00010883,2]
[346807558,1735301450562,-1150.02,0.00010883,2]
[346807559,1735301450571,-1358.32,0.00010883,2]
[346807560,1735301450581,-500.0,0.00010883,2]
[346807561,1735301450590,-486.18862711,0.00010883,2]
[346807562,1735301450600,-2843.65,0.00010883,2]
[346807563,1735301450609,-500.0,0.00010883,2]
[346807564,1735301450618,-500.0,0.00010883,2]
[346807565,1735301450627,-500.0,0.00010883,2]
[346807566,1735301450637,-2701.96,0.00010883,2]
[346807567,1735301450646,-500.0,0.00010883,2]
[346807568,1735301450655,-500.0,0.00010883,2]
[346807569,1735301450664,-500.0,0.00010883,2]
[346807570,1735301450674,-500.0,0.00010883,2]
[346807571,1735301450683,-500.0,0.00010883,2]
[346807572,1735301450692,-500.0,0.00010883,2]
[346807573,1735301450701,-500.0,0.00010883,2]
[346807574,1735301450711,-500.0,0.00010883,2]
[346807575,1735301450719,-500.0,0.00010883,2]
[346807576,1735301450729,-500.0,0.00010883,2]
[346807577,1735301450738,-578.86,0.00010883,2]
[346807578,1735301450747,-500.0,0.00010883,2]
[346807579,1735301450756,-500.0,0.00010883,2]
[346807580,1735301450766,-500.0,0.00010883,2]
[346807581,1735301450775,-401.38706563,0.00010883,2]
[346807582,1735301450785,-500.0,0.00010883,2]
[346807583,1735301450794,-530.45,0.00010883,2]
[346807584,1735301450803,-500.0,0.00010883,2]
[346807585,1735301450813,-500.0,0.00010883,2]
[346807586,1735301450822,-826.8,0.00010883,2]
[346807587,1735301450832,-500.0,0.00010883,2]
[346807588,1735301450841,-2646.7,0.00010883,2]
[346807589,1735301450850,-500.0,0.00010883,2]
[346807590,1735301450860,-500.0,0.00010883,2]
[346807591,1735301450870,-500.0,0.00010883,2]
[346807592,1735301450880,-500.87194471,0.00010883,2]
[346807593,1735301450889,-500.0,0.00010883,2]
[346807594,1735301450899,-500.0,0.00010883,2]
[346807595,1735301450908,-349.22238601,0.00010883,2]
[346807596,1735301450917,-505.01481173,0.00010883,2]
[346807597,1735301450926,-500.0,0.00010883,2]
[346807598,1735301450935,-1382.86,0.00010883,2]
[346807599,1735301450945,-500.0,0.00010883,2]
[346807600,1735301450954,-500.0,0.00010883,2]
[346807601,1735301450964,-2234.35,0.00010883,2]
[346807602,1735301450973,-500.0,0.00010883,2]
[346807603,1735301450982,-500.0,0.00010883,2]
[346807604,1735301450992,-500.41089354,0.00010883,2]
[346807605,1735301451001,-500.0,0.00010883,2]
[346807606,1735301451011,-599.31,0.00010883,2]
[346807607,1735301451020,-1771.05,0.00010883,2]
[346807608,1735301451029,-500.0,0.00010883,2]
[346807609,1735301451039,-500.0,0.00010883,2]
[346807610,1735301451048,-500.0,0.00010883,2]
[346807611,1735301451057,-500.0,0.00010884,2]
[346807612,1735301451066,-500.0,0.00010884,2]
[346807613,1735301451075,-500.0,0.00010884,2]
[346807614,1735301451084,-500.0,0.00010884,2]
[346807615,1735301451094,-733.0,0.00010884,2]
[346807616,1735301451106,-500.0,0.00010884,2]
[346807617,1735301451115,-500.0,0.00010884,2]
[346807618,1735301451124,-500.0,0.00010884,2]
[346807619,1735301451133,-298.76671988,0.00010884,2]
[346807620,1735301451143,-756.8,0.00010884,2]
[346807621,1735301451152,-500.0,0.00010884,2]
[346807622,1735301451161,-500.0,0.00010884,2]
[346807623,1735301451171,-500.0,0.00010884,2]
[346807624,1735301451183,-500.0,0.00010884,2]
[346807625,1735301451193,-500.0,0.00010884,2]
[346807626,1735301451202,-500.0,0.00010884,2]
[346807627,1735301451211,-500.0,0.00010884,2]
[346807628,1735301451220,-500.0,0.00010884,2]
[346807629,1735301451229,-500.0,0.00010884,2]
[346807630,1735301451238,-500.0,0.00010884,2]
[346807631,1735301451247,-501.42888699,0.00010884,2]
[346807632,1735301451257,-1039.16,0.00010884,2]
[346807633,1735301451266,-1276.57,0.00010884,2]
[346807634,1735301451275,-1612.59,0.00010884,2]
[346807635,1735301451285,-500.0,0.00010884,2]
[346807636,1735301451294,-500.0,0.00010884,2]
[346807637,1735301451303,-500.0,0.00010884,2]
[346807638,1735301451312,-500.0,0.00010884,2]
[346807639,1735301451321,-500.0,0.00010884,2]
[346807640,1735301451330,-855.07,0.00010884,2]
[346807641,1735301451339,-899.18,0.00010884,2]
[346807642,1735301451349,-770.04,0.00010884,2]
[346807643,1735301451358,-500.0,0.00010884,2]
[346807644,1735301451368,-500.0,0.00010884,2]
[346807645,1735301451378,-1313.11,0.00010884,2]
[346807646,1735301451387,-500.0,0.00010884,2]
[346807647,1735301451398,-500.0,0.00010884,2]
[346807648,1735301451407,-500.0,0.00010884,2]
[346807649,1735301451416,-504.18295952,0.00010884,2]
[346807650,1735301451425,-550.87,0.00010884,2]
[346807651,1735301451435,-720.63,0.00010884,2]
[346807652,1735301451444,-500.0,0.00010884,2]
[346807653,1735301451453,-1025.33,0.00010884,2]
[346807654,1735301451462,-500.0,0.00010884,2]
[346807655,1735301451472,-500.0,0.00010884,2]
[346807656,1735301451481,-1320.26,0.00010884,2]
[346807657,1735301451490,-561.9,0.00010884,2]
[346807658,1735301451499,-501.67,0.00010884,2]
[346807659,1735301451510,-500.0,0.00010884,2]
[346807660,1735301451519,-500.0,0.00010884,2]
[346807661,1735301451528,-500.0,0.00010884,2]
[346807662,1735301451537,-683.27,0.00010884,2]
[346807663,1735301451545,-1147.19,0.00010884,2]
[346807664,1735301451554,-1170.67,0.00010884,2]
[346807665,1735301451563,-508.10104951,0.00010884,2]
[346807666,1735301451571,-831.06,0.00010884,2]
[346807667,1735301451580,-500.0,0.00010884,2]
[346807668,1735301451588,-500.0,0.00010884,2]
[346807669,1735301451597,-500.0,0.00010884,2]
[346807670,1735301451606,-825.15,0.00010884,2]
[346807671,1735301451615,-583.46,0.00010884,2]
[346807672,1735301451626,-505.10113592,0.00010884,2]
[346807673,1735301451638,-584.82,0.00010884,2]
[346807674,1735301451648,-1120.85,0.00010884,2]
[346807675,1735301451659,-1050.39,0.00010884,2]
[346807676,1735301451669,-500.0,0.00010884,2]
[346807677,1735301451678,-500.0,0.00010884,2]
[346807678,1735301451687,-568.42,0.00010884,2]
[346807679,1735301451696,-500.0,0.00010884,2]
[346807680,1735301451706,-653.23,0.00010884,2]
[346807681,1735301451715,-650.37,0.00010884,2]
[346807682,1735301451724,-560.48,0.00010884,2]
[346807683,1735301451733,-500.0,0.00010884,2]
[346807684,1735301451743,-500.0,0.00010884,2]
[346807685,1735301451752,-500.0,0.00010884,2]
[346807686,1735301451761,-500.0,0.00010884,2]
[346807687,1735301451771,-500.0,0.00010884,2]
[346807688,1735301451780,-500.0,0.00010884,2]
[346807689,1735301451790,-500.0,0.00010884,2]
[346807690,1735301451799,-766.86,0.00010884,2]
[346807691,1735301451809,-500.0,0.00010884,2]
[346807692,1735301451818,-500.0,0.00010884,2]
[346807693,1735301451827,-500.0,0.00010884,2]
[346807694,1735301451836,-500.0,0.00010884,2]
[346807695,1735301451845,-648.00929367,0.00010884,2]
[346807696,1735301451855,-1050.06,0.00010884,2]
[346807697,1735301451864,-500.0,0.00010884,2]
[346807698,1735301451874,-500.0,0.00010884,2]
[346807699,1735301451884,-500.0,0.00010884,2]
[346807700,1735301451893,-500.0,0.00010884,2]
[346807701,1735301451902,-500.0,0.00010884,2]
[346807702,1735301451910,-500.0,0.00010884,2]
[346807703,1735301451918,-500.0,0.00010884,2]
[346807704,1735301451926,-500.0,0.00010884,2]
[346807705,1735301451935,-494.66392727,0.00010884,2]
[346807706,1735301451945,-500.0,0.00010884,2]
[346807707,1735301451954,-500.0,0.00010884,2]
[346807708,1735301451962,-500.0,0.00010884,2]
[346807709,1735301451971,-503.8442404,0.00010884,2]
[346807710,1735301451980,-500.0,0.00010884,2]
[346807711,1735301451989,-1398.58,0.00010884,2]
[346807712,1735301451998,-1981.03,0.00010884,2]
[346807713,1735301452006,-500.0,0.00010884,2]
[346807714,1735301452015,-500.0,0.00010884,2]
[346807715,1735301452024,-500.0,0.00010884,2]
[346807716,1735301452033,-500.0,0.00010884,2]
[346807717,1735301452041,-500.0,0.00010884,2]
[346807718,1735301452051,-500.0,0.00010884,2]
[346807719,1735301452060,-500.0,0.00010884,2]
[346807720,1735301452068,-1894.62,0.00010884,2]
[346807721,1735301452078,-500.0,0.00010884,2]
[346807722,1735301452087,-1617.52,0.00010884,2]
[346807723,1735301452097,-3089.36,0.00010884,2]
[346807724,1735301452109,-943.22,0.00010884,2]
[346807725,1735301452119,-1114.33,0.00010884,2]
[346807726,1735301452128,-1575.09,0.00010884,2]
[346807727,1735301452137,-874.1,0.00010884,2]
[346807728,1735301452147,-500.0,0.00010884,2]
[346807729,1735301452156,-500.0,0.00010884,2]
[346807730,1735301452166,-500.0,0.00010884,2]
[346807731,1735301452175,-500.0,0.00010884,2]
[346807732,1735301452185,-500.0,0.00010884,2]
[346807733,1735301452195,-633.41,0.00010884,2]
[346807734,1735301452204,-2661.36,0.00010884,2]
[346807735,1735301452213,-500.0,0.00010884,2]
[346807736,1735301452222,-1567.27,0.00010884,2]
[346807737,1735301452231,-550.64,0.00010884,2]
[346807738,1735301452240,-500.0,0.00010884,2]
[346807739,1735301452250,-500.0,0.00010884,2]
[346807740,1735301452260,-500.0,0.00010884,2]
[346807741,1735301452270,-500.0,0.00010884,2]
[346807742,1735301452280,-1345.68,0.00010884,2]
[346807743,1735301452290,-500.0,0.00010884,2]
[346807744,1735301452299,-1101.33,0.00010884,2]
[346807745,1735301452309,-1824.97,0.00010884,2]
[346807746,1735301452318,-642.22,0.00010884,2]
[346807747,1735301452328,-500.0,0.00010884,2]
[346807748,1735301452337,-1993.96,0.00010884,2]
[346807749,1735301452346,-500.0,0.00010884,2]
[346807750,1735301452356,-500.0,0.00010884,2]
[346807751,1735301452366,-823.68,0.00010884,2]
[346807752,1735301452374,-2353.94,0.00010884,2]
[346807753,1735301452384,-500.0,0.00010884,2]
[346807754,1735301452393,-500.0,0.00010884,2]
[346807755,1735301452403,-500.0,0.00010884,2]
[346807756,1735301452412,-500.0,0.00010884,2]
[346807757,1735301452422,-500.0,0.00010884,2]
[346807758,1735301452431,-1313.26,0.00010884,2]
[346807759,1735301452441,-500.0,0.00010884,2]
[346807760,1735301452451,-2776.47,0.00010884,2]
[346807761,1735301452460,-500.0,0.00010884,2]
[346807762,1735301452470,-500.0,0.00010884,2]
[346807763,1735301452480,-500.0,0.00010884,2]
[346807764,1735301452490,-500.0,0.00010884,2]
[346807765,1735301452499,-500.0,0.00010884,2]
[346807766,1735301452509,-500.86002284,0.00010884,2]
[346807767,1735301452518,-500.0,0.00010884,2]
[346807768,1735301452528,-1969.09,0.00010884,2]
[346807769,1735301452538,-500.0,0.00010884,2]
[346807770,1735301452547,-1083.91,0.00010884,2]
[346807771,1735301452556,-500.0,0.00010884,2]
[346807772,1735301452566,-500.0,0.00010884,2]
[346807773,1735301452575,-500.0,0.00010884,2]
[346807774,1735301452584,-500.0,0.00010884,2]
[346807775,1735301452594,-500.0,0.00010884,2]
[346807776,1735301452604,-500.0,0.00010884,2]
[346807777,1735301452613,-500.0,0.00010884,2]
[346807778,1735301452622,-500.0,0.00010884,2]
[346807779,1735301452632,-2253.52,0.00010884,2]
[346807780,1735301452641,-500.0,0.00010884,2]
[346807781,1735301452650,-500.0,0.00010884,2]
[346807782,1735301452659,-500.0,0.00010884,2]
[346807783,1735301452669,-733.32,0.00010884,2]
[346807784,1735301452678,-500.0,0.00010884,2]
[346807785,1735301452687,-1310.14,0.00010884,2]
[346807786,1735301452697,-500.0,0.00010884,2]
[346807787,1735301452706,-500.0,0.00010884,2]
[346807788,1735301452716,-500.0,0.00010884,2]
[346807789,1735301452725,-500.0,0.00010884,2]
[346807790,1735301452735,-501.0812531,0.00010884,2]
[346807791,1735301452744,-1373.96,0.00010884,2]
[346807792,1735301452754,-543.66,0.00010884,2]
[346807793,1735301452763,-500.0,0.00010884,2]
[346807794,1735301452773,-500.0,0.00010884,2]
[346807795,1735301452782,-500.0,0.00010884,2]
[346807796,1735301452791,-500.0,0.00010884,2]
[346807797,1735301452801,-500.0,0.00010884,2]
[346807798,1735301452810,-1519.47,0.00010884,2]